Workbook

Sheet BECO DA VITÓRIA
A1: ESTAÇÃO | B1: PTO VISADO | C1: ÂNGULO HORIZONTAL | F1: DISTÂNCIA | G1: OBSERVAÇÕES | H1: α decimal | I1: radiano | K1: Δx | L1: Δy | M1: p | N1: x | O1: y
A2: A | M2: A | N2: 1000 | O2: 1000
A3: A | B3: 0 | C3: 0 | D3: 0 | F3: 12.2 | H3: =C3+(D3/60)+(E3/3600) -> 0 | I3: =H3*PI()/180 -> 0 | J3: =I3 -> 0 | K3: =SIN(J3)*F3 -> 0 | L3: =COS(J3)*F3 -> 12.2 | M3: =B3 -> 0 | N3: =$N$2+K3 -> 1000 | O3: =$O$2+L3 -> 1012.2
B4: 1 | C4: 353 | D4: 18 | E4: 50 | F4: 12 | H4: =C4+(D4/60)+(E4/3600) -> 353.3138889 | I4: =H4*PI()/180 -> 6.166490654 | J4: =I4 -> 6.166490654 | K4: =SIN(J4)*F4 -> -1.397159788 | L4: =COS(J4)*F4 -> 11.91838683 | M4: =B4 -> 1 | N4: =$N$2+K4 -> 998.6028402 | O4: =$O$2+L4 -> 1011.918387
B5: 2 | C5: 355 | D5: 17 | E5: 40 | F5: 1.4 | H5: 355.2944444 | I5: 6.20105787 | J5: 6.20105787 | K5: -0.1148492029 | L5: 1.395281212 | M5: 2 | N5: 999.8851508 | O5: 1001.395281
B6: 3 | C6: 6 | D6: 10 | E6: 30 | F6: 6.6 | H6: 6.175 | I6: 0.1077740813 | J6: 0.1077740813 | K6: 0.7099327306 | L6: 6.561706753 | M6: 3 | N6: 1000.709933 | O6: 1006.561707
B7: 4 | C7: 41 | D7: 49 | E7: 20 | F7: 2 | H7: 41.82222222 | I7: 0.7299354783 | J7: 0.7299354783 | K7: 1.333643107 | L7: 1.490434857 | M7: 4 | N7: 1001.333643 | O7: 1001.490435
B8: 5 | C8: 69 | D8: 29 | F8: 3.8 | H8: 69.48333333 | I8: 1.212712942 | J8: 1.212712942 | K8: 3.558967058 | L8: 1.331823367 | M8: 5 | N8: 1003.558967 | O8: 1001.331823
B9: 6 | C9: 92 | D9: 43 | F9: 22.6 | H9: 92.71666667 | I9: 1.618211105 | J9: 1.618211105 | K9: 22.57460054 | L9: -1.071172516 | M9: 6 | N9: 1022.574601 | O9: 998.9288275
B10: 7 | C10: 102 | D10: 9 | E10: 30 | F10: 19.2 | H10: 102.1583333 | I10: 1.782999275 | J10: 1.782999275 | K10: 18.76933086 | L10: -4.04378772 | M10: 7 | N10: 1018.769331 | O10: 995.9562123
B11: 8 | C11: 102 | D11: 59 | F11: 15 | H11: 102.9833333 | I11: 1.797398241 | J11: 1.797398241 | K11: 14.61653189 | L11: -3.370014181 | M11: 8 | N11: 1014.616532 | O11: 996.6299858
B12: 9 | C12: 105 | D12: 39 | E12: 40 | F12: 8.8 | H12: 105.6611111 | I12: 1.84413428 | J12: 1.84413428 | K12: 8.473301688 | L12: -2.375533311 | M12: 9 | N12: 1008.473302 | O12: 997.6244667
B13: 10 | C13: 115 | D13: 16 | F13: 4.5 | H13: 115.2666667 | I13: 2.011782851 | J13: 2.011782851 | K13: 4.069489605 | L13: -1.920743177 | M13: 10 | N13: 1004.06949 | O13: 998.0792568
B14: 11 | C14: 162 | D14: 15 | E14: 30 | F14: 2 | H14: 162.2583333 | I14: 2.831942155 | J14: 2.831942155 | K14: 0.6094515509 | L14: -1.904880261 | M14: 11 | N14: 1000.609452 | O14: 998.0951197
B15: 12 | C15: 174 | D15: 43 | E15: 20 | F15: 6.8 | H15: 174.7222222 | I15: 3.049478054 | J15: 3.049478054 | K15: 0.6254938367 | L15: -6.771171055 | M15: 12 | N15: 1000.625494 | O15: 993.2288289
B16: 13 | C16: 179 | D16: 58 | F16: 14.2 | H16: 179.9666667 | I16: 3.141010877 | J16: 3.141010877 | K16: 0.00826122466 | L16: -14.1999976 | M16: 13 | N16: 1000.008261 | O16: 985.8000024
B17: 14 | C17: 181 | D17: 48 | F17: 1.9 | H17: 181.8 | I17: 3.17300858 | J17: 3.17300858 | K17: -0.05968044225 | L17: -1.899062465 | M17: 14 | N17: 999.9403196 | O17: 998.1009375
B18: 15 | C18: 181 | D18: 48 | F18: 7.3 | H18: 181.8 | I18: 3.17300858 | J18: 3.17300858 | K18: -0.2292985413 | L18: -7.296397891 | M18: 15 | N18: 999.7707015 | O18: 992.7036021
B19: 16 | C19: 183 | D19: 40 | E19: 30 | F19: 14.4 | H19: 183.675 | I19: 3.205733504 | J19: 3.205733504 | K19: -0.9229950618 | L19: -14.370389 | M19: 16 | N19: 999.0770049 | O19: 985.629611
B20: 17 | C20: 183 | D20: 40 | E20: 30 | F20: 22.4 | H20: 183.675 | I20: 3.205733504 | J20: 3.205733504 | K20: -1.435770096 | L20: -22.35393845 | M20: 17 | N20: 998.5642299 | O20: 977.6460615
B21: 18 | C21: 186 | D21: 11 | F21: 21.2 | H21: 186.1833333 | I21: 3.249512179 | J21: 3.249512179 | K21: -2.283455484 | L21: -21.07666556 | M21: 18 | N21: 997.7165445 | O21: 978.9233344
B22: 19 | C22: 199 | D22: 43 | E22: 30 | F22: 26.5 | H22: 199.725 | I22: 3.485858849 | J22: 3.485858849 | K22: -8.943909539 | L22: -24.9450693 | M22: 19 | N22: 991.0560905 | O22: 975.0549307
B23: 20 | C23: 204 | D23: 37 | F23: 26.9 | H23: 204.6166667 | I23: 3.571234538 | J23: 3.571234538 | K23: -11.20506751 | L23: -24.45519295 | M23: 20 | N23: 988.7949325 | O23: 975.5448071
B24: 21 | C24: 211 | D24: 45 | E24: 50 | F24: 16.5 | H24: 211.7638889 | I24: 3.695977098 | J24: 3.695977098 | K24: -8.68593065 | L24: -14.0287066 | M24: 21 | N24: 991.3140694 | O24: 985.9712934
B25: 22 | C25: 204 | D25: 19 | E25: 20 | F25: 15.5 | H25: =C25+(D25/60)+(E25/3600) -> 204.3222222 | I25: =H25*PI()/180 -> 3.566095513 | J25: 3.566095513 | K25: =SIN(J25)*F25 -> -6.383951152 | L25: =COS(J25)*F25 -> -14.12427583 | M25: =B25 -> 22 | N25: =$N$2+K25 -> 993.6160488 | O25: =$O$2+L25 -> 985.8757242
B26: 23 | C26: 224 | D26: 15 | F26: 8 | H26: 224.25 | I26: 3.913900848 | J26: 3.913900848 | K26: -5.582323679 | L26: -5.730415547 | M26: 23 | N26: 994.4176763 | O26: 994.2695845
B27: 24 | C27: 238 | D27: 7 | E27: 20 | F27: 6.6 | H27: 238.1222222 | I27: 4.1560168 | J27: 4.1560168 | K27: -5.604565422 | L27: -3.485519535 | M27: 24 | N27: 994.3954346 | O27: 996.5144805
B28: 25 | C28: 245 | D28: 32 | E28: 40 | F28: 9 | H28: 245.5444444 | I28: 4.285559016 | J28: 4.285559016 | K28: -8.192544079 | L28: -3.725885334 | M28: 25 | N28: 991.8074559 | O28: 996.2741147
B29: 26 | C29: 292 | D29: 46 | F29: 6.1 | H29: 292.7666667 | I29: 5.109742273 | J29: 5.109742273 | K29: -5.624739502 | L29: 2.360573136 | M29: 26 | N29: 994.3752605 | O29: 1002.360573
B30: 27 | C30: 323 | D30: 36 | F30: 10.7 | H30: 323.6 | I30: 5.647885459 | J30: 5.647885459 | K30: -6.349582087 | L30: 8.612363632 | M30: 27 | N30: 993.6504179 | O30: 1008.612364
B31: 28 | C31: 312 | D31: 30 | F31: 11.6 | H31: 312.5 | I31: 5.454153912 | J31: 5.454153912 | K31: -8.552417107 | L31: 7.836846408 | M31: 28 | N31: 991.4475829 | O31: 1007.836846
B32: 29 | C32: 327 | D32: 12 | E32: 30 | F32: 22 | H32: 327.2083333 | I32: 5.710862757 | J32: 5.710862757 | K32: -11.91489088 | L32: 18.49419842 | M32: 29 | N32: 988.0851091 | O32: 1018.494198
B33: 30 | C33: 335 | D33: 37 | E33: 40 | F33: 22 | H33: 335.6277778 | I33: 5.857809783 | J33: 5.857809783 | K33: -9.078583127 | L33: 20.03944431 | M33: 30 | N33: 990.9214169 | O33: 1020.039444
B34: B | C34: 96 | D34: 30 | F34: 22 | H34: 96.5 | I34: 1.684242728 | J34: 1.684242728 | K34: 21.85858082 | L34: -2.490470703 | M34: B | N34: 1021.858581 | O34: 997.5095293
A35: B | B35: A | M35: A
B36: 31 | C36: 174 | D36: 18 | E36: 20 | F36: 7 | H36: 174.3055556 | I36: 3.042205849 | J36: =IF($J$34+I36>PI(),$J$34+I36-PI(),$J$34+I36+PI()) -> 1.584855924 | K36: 6.999308158 | L36: -0.09841393491 | M36: 31 | N36: =$N$34+K36 -> 1028.857889 | O36: =$O$34+L36 -> 997.4111154
B37: 32 | C37: 179 | D37: 54 | F37: 14.3 | H37: =C37+(D37/60)+(E37/3600) -> 179.9 | I37: =H37*PI()/180 -> 3.139847324 | J37: =IF($J$34+I37>PI(),$J$34+I37-PI(),$J$34+I37+PI()) -> 1.682497399 | K37: =SIN(J37)*F37 -> 14.21088124 | L37: =COS(J37)*F37 -> -1.594005731 | M37: =B37 -> 32 | N37: =$N$34+K37 -> 1036.069462 | O37: =$O$34+L37 -> 995.9155236
B38: 33 | C38: 184 | D38: 34 | E38: 50 | F38: 27.3 | H38: 184.5805556 | I38: 3.22153843 | J38: 1.764188504 | K38: 26.79107186 | L38: -5.246757914 | M38: 33 | N38: 1048.649653 | O38: 992.2627714
B39: 34 | C39: 190 | D39: 22 | E39: 40 | F39: 26.8 | H39: 190.3777778 | I39: 3.322719045 | J39: 1.865369119 | K39: 25.6456238 | L39: -7.780872694 | M39: 34 | N39: 1047.504205 | O39: 989.7286566
B40: 35 | C40: 192 | D40: 44 | E40: 30 | F40: 17 | H40: 192.7416667 | I40: 3.363976689 | J40: 1.906626764 | K40: 16.05032835 | L40: -5.602406603 | M40: 35 | N40: 1037.908909 | O40: 991.9071227
B41: 36 | C41: 204 | D41: 6 | E41: 10 | F41: 5.5 | H41: 204.1027778 | I41: 3.562265485 | J41: 2.104915559 | K41: 4.733945408 | L41: -2.799957298 | M41: 36 | N41: 1026.592526 | O41: 994.709572
B42: 37 | C42: 201 | D42: 57 | E42: 0 | F42: 4.2 | H42: 201.95 | I42: 3.524692424 | J42: 2.067342499 | K42: 3.692779346 | L42: -2.000844997 | M42: 37 | N42: 1025.55136 | O42: 995.5086843
B43: C | C43: 187 | F43: 38 | H43: 187 | I43: 3.263765701 | J43: 1.806415776 | K43: 36.95005698 | L43: -8.870923827 | M43: C | N43: 1058.808638 | O43: 988.6386055
B44: 38 | C44: 100 | F44: 200 | H44: 100 | I44: 1.745329252 | J44: 0.2879793266 | K44: 56.80306894 | L44: 191.763947 | M44: 38 | N44: 1078.66165 | O44: 1189.273476

Sheet RUA FLOR DE MAIO
A1: ESTAÇÃO | B1: PTO VISADO | C1: ÂNGULO HORIZONTAL | F1: DISTÂNCIA | G1: OBSERVAÇÕES | H1: α decimal | I1: radiano | K1: Δx | L1: Δy | M1: p | N1: x | O1: y
A2: A | M2: A | N2: 1000 | O2: 1000
A3: A | B3: 0 | C3: 0 | D3: 0 | F3: 42.5 | H3: =C3+(D3/60)+(E3/3600) -> 0 | I3: =H3*PI()/180 -> 0 | J3: =I3 -> 0 | K3: =SIN(J3)*F3 -> 0 | L3: =COS(J3)*F3 -> 42.5 | M3: =B3 -> 0 | N3: =$N$2+K3 -> 1000 | O3: =$O$2+L3 -> 1042.5
B4: 1 | C4: 358 | D4: 57 | E4: 50 | F4: 41 | H4: =C4+(D4/60)+(E4/3600) -> 358.9638889 | I4: =H4*PI()/180 -> 6.265101757 | J4: =I4 -> 6.265101757 | K4: =SIN(J4)*F4 -> -0.7413851537 | L4: =COS(J4)*F4 -> 40.99329638 | M4: =B4 -> 1 | N4: =$N$2+K4 -> 999.2586148 | O4: =$O$2+L4 -> 1040.993296
B5: 2 | C5: 6 | D5: 31 | E5: 50 | F5: 28.2 | H5: 6.530555556 | I5: 0.1139796964 | J5: 0.1139796964 | K5: 3.207272422 | L5: 28.01701989 | M5: 2 | N5: 1003.207272 | O5: 1028.01702
B6: 3 | C6: 3 | D6: 53 | E6: 40 | F6: 27.8 | H6: 3.894444444 | I6: 0.06797087809 | J6: 0.06797087809 | K6: 1.88813575 | L6: 27.73580616 | M6: 3 | N6: 1001.888136 | O6: 1027.735806
B7: 4 | C7: 7 | D7: 39 | E7: 40 | F7: 26.5 | H7: 7.661111111 | I7: 0.1337116133 | J7: 0.1337116133 | K7: 3.532808691 | L7: 26.2634587 | M7: 4 | N7: 1003.532809 | O7: 1026.263459
B8: 5 | C8: 11 | D8: 19 | E8: 50 | F8: 19.6 | H8: 11.33055556 | I8: 0.1977555005 | J8: 0.1977555005 | K8: 3.850793837 | L8: 19.21799643 | M8: 5 | N8: 1003.850794 | O8: 1019.217996
B9: 6 | C9: 6 | D9: 57 | E9: 20 | F9: 19.3 | H9: 6.955555556 | I9: 0.1213973457 | J9: 0.1213973457 | K9: 2.337218167 | L9: 19.15795947 | M9: 6 | N9: 1002.337218 | O9: 1019.157959
B10: 7 | C10: 13 | D10: 56 | E10: 30 | F10: 12 | H10: 13.94166667 | I10: 0.2433279865 | J10: 0.2433279865 | K10: 2.891206846 | L10: 11.64649831 | M10: 7 | N10: 1002.891207 | O10: 1011.646498
B11: 8 | C11: 8 | D11: 38 | E11: 40 | F11: 13.5 | H11: 8.644444444 | I11: 0.1508740176 | J11: 0.1508740176 | K11: 2.029080761 | L11: 13.3466412 | M11: 8 | N11: 1002.029081 | O11: 1013.346641
B12: 9 | C12: 11 | D12: 12 | F12: 7 | H12: 11.2 | I12: 0.1954768762 | J12: 0.1954768762 | K12: 1.359640459 | L12: 6.866686087 | M12: 9 | N12: 1001.35964 | O12: 1006.866686
B13: 10 | C13: 12 | D13: 39 | F13: 3.1 | H13: 12.65 | I13: 0.2207841504 | J13: 0.2207841504 | K13: 0.6788838994 | L13: 3.024750676 | M13: 10 | N13: 1000.678884 | O13: 1003.024751
B14: 11 | C14: 34 | D14: 9 | E14: 50 | F14: 3 | H14: 34.16388889 | I14: 0.5962723464 | J14: 0.5962723464 | K14: 1.684685977 | L14: 2.482304002 | M14: 11 | N14: 1001.684686 | O14: 1002.482304
B15: 12 | C15: 70 | D15: 33 | E15: 20 | F15: 4 | H15: 70.55555556 | I15: 1.23142675 | J15: 1.23142675 | K15: 3.771858865 | L15: 1.331570766 | M15: 12 | N15: 1003.771859 | O15: 1001.331571
B16: 13 | C16: 87 | D16: 28 | E16: 50 | F16: 17.3 | H16: 87.48055556 | I16: 1.526823726 | J16: 1.526823726 | K16: 17.28327714 | L16: 0.7604808636 | M16: 13 | N16: 1017.283277 | O16: 1000.760481
B17: 14 | C17: 89 | D17: 43 | F17: 25.8 | H17: 89.71666667 | I17: 1.565851227 | J17: 1.565851227 | K17: 25.79968454 | L17: 0.1275830483 | M17: 14 | N17: 1025.799685 | O17: 1000.127583
B18: 15 | C18: 100 | F18: 27.7 | H18: 100 | I18: 1.745329252 | J18: 1.745329252 | K18: 27.27917476 | L18: -4.810054521 | M18: 15 | N18: 1027.279175 | O18: 995.1899455
B19: 16 | C19: 104 | D19: 27 | E19: 20 | F19: 27.6 | H19: 104.4555556 | I19: 1.823093366 | J19: 1.823093366 | K19: 26.72622731 | L19: -6.889758602 | M19: 16 | N19: 1026.726227 | O19: 993.1102414
B20: 17 | C20: 124 | D20: 37 | F20: 5.3 | H20: 124.6166667 | I20: 2.174971136 | J20: 2.174971136 | K20: 4.36174712 | L20: -3.010840757 | M20: 17 | N20: 1004.361747 | O20: 996.9891592
B21: 18 | C21: 171 | D21: 35 | E21: 40 | F21: 4.2 | H21: 171.5944444 | I21: 2.994888034 | J21: 2.994888034 | K21: 0.6139515918 | L21: -4.154884288 | M21: 18 | N21: 1000.613952 | O21: 995.8451157
B22: 19 | C22: 188 | D22: 43 | F22: 3.8 | H22: 188.7166667 | I22: 3.293727187 | J22: 3.293727187 | K22: -0.5758837492 | L22: -3.756109411 | M22: 19 | N22: 999.4241163 | O22: 996.2438906
B23: 20 | C23: 194 | D23: 44 | F23: 16 | H23: 194.7333333 | I23: 3.39873783 | J23: 3.39873783 | K23: -4.069130163 | L23: -15.47391934 | M23: 20 | N23: 995.9308698 | O23: 984.5260807
B24: 21 | C24: 200 | D24: 38 | F24: 26.5 | H24: 200.6333333 | I24: 3.501712256 | J24: 3.501712256 | K24: -9.338233404 | L24: -24.80014913 | M24: 21 | N24: 990.6617666 | O24: 975.1998509
B25: 22 | C25: 194 | D25: 55 | F25: 3.7 | H25: 194.9166667 | I25: 3.4019376 | J25: 3.4019376 | K25: -0.9524313918 | L25: -3.575314594 | M25: 22 | N25: 999.0475686 | O25: 996.4246854
B26: 23 | C26: 197 | D26: 32 | F26: 9.2 | H26: 197.5333333 | I26: 3.447607049 | J26: 3.447607049 | K26: -2.771597507 | L26: -8.772584982 | M26: 23 | N26: 997.2284025 | O26: 991.227415
B27: 24 | C27: 200 | D27: 24 | E27: 30 | F27: 16.4 | H27: 200.4083333 | I27: 3.497785265 | J27: 3.497785265 | K27: -5.718817199 | L27: -15.37059302 | M27: 24 | N27: 994.2811828 | O27: 984.629407
B28: 25 | C28: 202 | D28: 39 | E28: 20 | F28: 22.8 | H28: 202.6555556 | I28: 3.537006692 | J28: 3.537006692 | K28: -8.782339108 | L28: -21.04068725 | M28: 25 | N28: 991.2176609 | O28: 978.9593128
B29: 26 | C29: 216 | D29: 25 | E29: 50 | F29: 22.2 | H29: 216.4305556 | I29: 3.777425796 | J29: 3.777425796 | K29: -13.18342667 | L29: -17.86161419 | M29: 26 | N29: 986.8165733 | O29: 982.1383858
B30: 27 | C30: 224 | D30: 29 | F30: 19.3 | H30: 224.4833333 | I30: 3.917973283 | J30: 3.917973283 | K30: -13.52354394 | L30: -13.76966809 | M30: 27 | N30: 986.4764561 | O30: 986.2303319
B31: 28 | C31: 221 | D31: 29 | E31: 40 | F31: 14.2 | H31: 221.4944444 | I31: 3.86580733 | J31: 3.86580733 | K31: -9.408173425 | L31: -10.63608353 | M31: 28 | N31: 990.5918266 | O31: 989.3639165
B32: 29 | C32: 234 | D32: 45 | E32: 50 | F32: 8.8 | H32: 234.7638889 | I32: 4.097402826 | J32: 4.097402826 | K32: -7.187676629 | L32: -5.07713548 | M32: 29 | N32: 992.8123234 | O32: 994.9228645
B33: 30 | C33: 252 | D33: 31 | E33: 20 | F33: 10.2 | H33: 252.5222222 | I33: 4.407344212 | J33: 4.407344212 | K33: -9.729101782 | L33: -3.063425944 | M33: 30 | N33: 990.2708982 | O33: 996.9365741
B34: 31 | C34: 314 | D34: 3 | E34: 30 | F34: 6.3 | H34: 314.0583333 | I34: 5.48135196 | J34: 5.48135196 | K34: -4.527382796 | L34: 4.380959372 | M34: 31 | N34: 995.4726172 | O34: 1004.380959
B35: 32 | C35: 343 | D35: 22 | E35: 30 | F35: 12 | H35: 343.375 | I35: 5.993024319 | J35: 5.993024319 | K35: -3.433277848 | L35: 11.49837394 | M35: 32 | N35: 996.5667222 | O35: 1011.498374
B36: 33 | C36: 319 | D36: 39 | F36: 10.4 | H36: 319.65 | I36: 5.578944954 | J36: 5.578944954 | K36: -6.733532903 | L36: 7.925877532 | M36: 33 | N36: 993.2664671 | O36: 1007.925878
B37: 34 | C37: 343 | D37: 28 | E37: 20 | F37: 19.3 | H37: 343.4722222 | I37: 5.994721167 | J37: 5.994721167 | K37: -5.490467092 | L37: 18.5025612 | M37: 34 | N37: 994.5095329 | O37: 1018.502561
B38: 35 | C38: 350 | D38: 38 | F38: 18.3 | H38: 350.6333333 | I38: 6.119706134 | J38: 6.119706134 | K38: =SIN(J38)*F38 -> -2.978361055 | L38: =COS(J38)*F38 -> 18.05600635 | M38: 35 | N38: 997.0216389 | O38: 1018.056006
B39: B | C39: 95 | F39: 40 | H39: 95 | I39: 1.658062789 | J39: 1.658062789 | K39: =SIN(J39)*F39 -> 39.84778792 | L39: =COS(J39)*F39 -> -3.48622971 | M39: B | N39: 1039.847788 | O39: 996.5137703
A40: B | B40: A | M40: A
B41: 36 | C41: 65 | D41: 14 | F41: 2.9 | H41: =C41+(D41/60)+(E41/3600) -> 65.23333333 | I41: =H41*PI()/180 -> 1.138536449 | J41: =IF($J$39+I41>PI(),$J$39+I41-PI(),$J$39+I41+PI()) -> 5.938191892 | K41: =SIN(J41)*F41 -> -0.9807523941 | L41: =COS(J41)*F41 -> 2.72912527 | M41: =B41 -> 36 | N41: =$N$39+K41 -> 1038.867036 | O41: =$O$39+L41 -> 999.2428956
B42: 37 | C42: 87 | D42: 20 | E42: 40 | F42: 4.3 | H42: =C42+(D42/60)+(E42/3600) -> 87.34444444 | I42: =H42*PI()/180 -> 1.524448139 | J42: =IF($J$39+I42>PI(),$J$39+I42-PI(),$J$39+I42+PI()) -> 0.04091827469 | K42: =SIN(J42)*F42 -> 0.1758994867 | L42: =COS(J42)*F42 -> 4.296400746 | M42: =B42 -> 37 | N42: =$N$39+K42 -> 1040.023687 | O42: =$O$39+L42 -> 1000.810171
B43: 38 | C43: 103 | D43: 27 | F43: 23.3 | H43: 103.45 | I43: 1.805543111 | J43: 0.322013247 | K43: 7.373913335 | L43: 22.10238453 | M43: 38 | N43: 1047.221701 | O43: 1018.616155
B44: 39 | C44: 105 | D44: 41 | E44: 20 | F44: 28.2 | H44: 105.6888889 | I44: 1.844619094 | J44: 0.3610892297 | K44: 9.962874746 | L44: 26.38145422 | M44: 39 | N44: 1049.810663 | O44: 1022.895225
B45: 40 | C45: 107 | D45: 48 | F45: 27.2 | H45: 107.8 | I45: 1.881464934 | J45: 0.3979350695 | K45: 10.54042395 | L45: 25.07467772 | M45: 40 | N45: 1050.388212 | O45: 1021.588448
B46: 41 | C46: 108 | D46: 57 | F46: 19.8 | H46: 108.95 | I46: 1.90153622 | J46: 0.4180063559 | K46: 8.037597536 | L46: 18.09522108 | M46: 41 | N46: 1047.885385 | O46: 1014.608991
B47: 42 | C47: 117 | D47: 54 | F47: 2.8 | H47: 117.9 | I47: 2.057743188 | J47: 0.5742133239 | K47: 1.52088846 | L47: 2.350935621 | M47: 42 | N47: 1041.368676 | O47: 998.8647059
B48: 43 | C48: 175 | D48: 52 | F48: 10.6 | H48: 175.8666667 | I48: 3.069452378 | J48: 1.585922514 | K48: 10.59878738 | L48: -0.1603314664 | M48: 43 | N48: 1050.446575 | O48: 996.3534388
B49: 44 | C49: 177 | D49: 14 | E49: 30 | F49: 9.9 | H49: 177.2416667 | I49: 3.093450655 | J49: 1.609920791 | K49: 9.892423884 | L49: -0.3872333854 | M49: 44 | N49: 1049.740212 | O49: 996.1265369
B50: 45 | C50: 215 | D50: 55 | F50: 5.6 | H50: 215.9166667 | I50: 3.768456743 | J50: 2.284926879 | K50: 4.231712693 | L50: -3.667779667 | M50: 45 | N50: 1044.079501 | O50: 992.8459906
B51: 46 | C51: 299 | D51: 38 | E51: 40 | F51: 3.2 | H51: 299.6444444 | I51: 5.229782141 | J51: 3.746252277 | K51: -1.819142664 | L51: -2.632626059 | M51: 46 | N51: 1038.028645 | O51: 993.8811442
B52: AUX.1 | C52: 106 | F52: 23 | H52: 106 | I52: 1.850049007 | J52: 0.3665191429 | K52: 8.24246284 | L52: 21.47234981 | M52: AUX.1 | N52: 1048.090251 | O52: 1017.98612
B53: C | C53: 190 | F53: 8 | H53: 190 | I53: 3.316125579 | J53: 1.832595715 | K53: 7.72740661 | L53: -2.070552361 | M53: C | N53: 1047.575195 | O53: 994.4432179
A54: C | B54: B | M54: B
B55: 47 | C55: 283 | D55: 37 | E55: 40 | F55: 11.2 | H55: =C55+(D55/60)+(E55/3600) -> 283.6277778 | I55: =H55*PI()/180 -> 4.950238572 | J55: =IF($J$53+I55>PI(),$J$53+I55-PI(),$J$53+I55+PI()) -> 3.641241633 | K55: =SIN(J55)*F55 -> -5.36611555 | L55: =COS(J55)*F55 -> -9.830808914 | M55: 47 | N55: =$N$53+K55 -> 1042.209079 | O55: =$O$53+L55 -> 984.612409
B56: 48 | C56: 283 | D56: 40 | F56: 13.5 | H56: =C56+(D56/60)+(E56/3600) -> 283.6666667 | I56: =H56*PI()/180 -> 4.950917311 | J56: =IF($J$53+I56>PI(),$J$53+I56-PI(),$J$53+I56+PI()) -> 3.641920372 | K56: =SIN(J56)*F56 -> -6.476127029 | L56: =COS(J56)*F56 -> -11.84524287 | M56: =B56 -> 48 | N56: =$N$53+K56 -> 1041.099068 | O56: =$O$53+L56 -> 982.5979751
B57: 49 | C57: 272 | D57: 34 | E57: 30 | F57: 13.8 | H57: 272.575 | I57: 4.757331209 | J57: 3.44833427 | K57: -4.166964566 | L57: -13.15585065 | M57: 49 | N57: 1043.40823 | O57: 981.2873673
B58: 50 | C58: 230 | D58: 30 | E58: 30 | F58: 2.5 | H58: 230.5083333 | I58: 4.02312937 | J58: 2.714132431 | K58: 1.036402224 | L58: -2.27505394 | M58: 50 | N58: 1048.611597 | O58: 992.168164
B59: 51 | C59: 252 | D59: 40 | F59: 9.5 | H59: 252.6666667 | I59: 4.409865243 | J59: 3.100868304 | K59: 0.3867743877 | L59: -9.492123344 | M59: 51 | N59: 1047.961969 | O59: 984.9510946
B60: 52 | C60: 190 | F60: 9.3 | H60: 190 | I60: 3.316125579 | J60: 2.00712864 | K60: 8.428662419 | L60: -3.930349834 | M60: 52 | N60: 1056.003857 | O60: 990.5128681
B61: 53 | C61: 189 | D61: 28 | F61: 10.4 | H61: 189.4666667 | I61: 3.306817156 | J61: 1.997820217 | K61: 9.466104706 | L61: -4.307303296 | M61: 53 | N61: 1057.041299 | O61: 990.1359146
B62: AUX.2 | C62: 279 | F62: 12 | H62: 279 | I62: 4.869468613 | J62: 3.560471674 | K62: -4.880839717 | L62: -10.96254549 | M62: AUX.2 | N62: 1042.694355 | O62: 983.4806724
B63: D | C63: 169 | D63: 30 | F63: 20 | H63: 169.5 | I63: 2.958333082 | J63: 1.649336143 | K63: 19.93834667 | L63: -1.569181915 | M63: D | N63: 1067.513541 | O63: 992.874036
A64: D | B64: C | M64: C
B65: 54 | C65: 11 | D65: 26 | F65: 16.9 | H65: 11.43333333 | I65: 0.1995493111 | J65: =IF($J$63+I65>PI(),$J$63+I65-PI(),$J$63+I65+PI()) -> 4.990478108 | K65: -16.25073181 | L65: 4.639365873 | M65: 54 | N65: =$N$63+K65 -> 1051.262809 | O65: =$O$63+L65 -> 997.5134019
B66: 55 | C66: 104 | D66: 28 | E66: 50 | F66: 4.6 | H66: =C66+(D66/60)+(E66/3600) -> 104.4805556 | I66: =H66*PI()/180 -> 1.823529699 | J66: =IF($J$63+I66>PI(),$J$63+I66-PI(),$J$63+I66+PI()) -> 0.3312731883 | K66: =SIN(J66)*F66 -> 1.496137375 | L66: =COS(J66)*F66 -> 4.349893442 | M66: =B66 -> 55 | N66: =$N$63+K66 -> 1069.009679 | O66: =$O$63+L66 -> 997.2239295
B67: 56 | C67: 120 | D67: 48 | E67: 20 | F67: 5.3 | H67: 120.8055556 | I67: 2.108454699 | J67: 0.6161981887 | K67: 3.06306481 | L67: 4.325232245 | M67: 56 | N67: 1070.576606 | O67: 997.1992683
B68: E | C68: 262 | D68: 33 | E68: 30 | F68: 4.7 | H68: 262.5583333 | I68: 4.582507395 | J68: 3.090250885 | K68: 0.2412003145 | L68: -4.693806814 | M68: E | N68: 1067.754742 | O68: 988.1802292
A69: E | B69: D | M69: =B69 -> D
B70: 57 | C70: 88 | D70: 44 | F70: 1.4 | H70: 88.73333333 | I70: 1.548688823 | J70: =IF($J$68+I70>PI(),$J$68+I70-PI(),$J$68+I70+PI()) -> 1.497347054 | K70: 1.39622534 | L70: 0.1027365498 | M70: 57 | N70: =$N$68+K70 -> 1069.150967 | O70: =$O$68+L70 -> 988.2829658
B71: 58 | C71: 98 | D71: 11 | E71: 30 | F71: 5 | H71: =C71+(D71/60)+(E71/3600) -> 98.19166667 | I71: =H71*PI()/180 -> 1.713767881 | J71: =IF($J$68+I71>PI(),$J$68+I71-PI(),$J$68+I71+PI()) -> 1.662426113 | K71: =SIN(J71)*F71 -> 4.979024638 | L71: =COS(J71)*F71 -> -0.4575080933 | M71: =B71 -> 58 | N71: =$N$68+K71 -> 1072.733766 | O71: =$O$68+L71 -> 987.7227211
B72: 59 | C72: 102 | D72: 36 | E72: 20 | F72: 8.5 | H72: 102.6055556 | I72: 1.790804775 | J72: 1.739463006 | K72: 8.379380453 | L72: -1.42687884 | M72: 59 | N72: 1076.134122 | O72: 986.7533504
B73: 60 | C73: 102 | D73: 52 | F73: 11.7 | H73: 102.8666667 | I73: 1.795362024 | J73: 1.744020255 | K73: 11.52490031 | L73: -2.016599351 | M73: 60 | N73: 1079.279642 | O73: 986.1636298
B74: 61 | C74: 104 | D74: 20 | E74: 30 | F74: 29.9 | H74: 104.3416667 | I74: 1.82110563 | J74: 1.769763862 | K74: 29.31010812 | L74: -5.909954477 | M74: 61 | N74: 1097.06485 | O74: 982.2702747
B75: 62 | C75: 107 | D75: 2 | F75: 32 | H75: 107.0333333 | I75: 1.868084076 | J75: 1.816742307 | K75: 31.037038 | L75: -7.791166305 | M75: 62 | N75: 1098.79178 | O75: 980.3890629
B76: 63 | C76: 108 | D76: 39 | E76: 20 | F76: 29.5 | H76: 108.6555556 | I76: 1.896397195 | J76: 1.845055426 | K76: 28.39747062 | L76: -7.989597132 | M76: 63 | N76: 1096.152212 | O76: 980.1906321
B77: 64 | C77: 109 | D77: 36 | E77: 30 | F77: 14.6 | H77: 109.6083333 | I77: 1.913026304 | J77: 1.861684535 | K77: 13.98664688 | L77: -4.187327198 | M77: 64 | N77: 1081.741388 | O77: 983.992902
B78: 65 | C78: 111 | D78: 27 | E78: 40 | F78: 9.2 | H78: 111.4611111 | I78: 1.945363377 | J78: 1.894021608 | K78: 8.723586437 | L78: -2.922163527 | M78: 65 | N78: 1076.478328 | O78: 985.2580657
B79: 66 | C79: 253 | D79: 35 | E79: 20 | F79: 1.2 | H79: 253.5888889 | I79: 4.425961058 | J79: 4.374619289 | K79: -1.132195319 | L79: -0.397660357 | M79: 66 | N79: 1066.622546 | O79: 987.7825688
B80: 67 | C80: 310 | D80: 48 | E80: 30 | F80: 1.3 | H80: 310.8083333 | I80: 5.424628759 | J80: 5.37328699 | K80: -1.026273726 | L80: 0.7979738334 | M80: 67 | N80: 1066.728468 | O80: 988.978203
B81: F | C81: 105 | F81: 47.3 | H81: 105 | I81: 1.832595715 | J81: 1.781253946 | K81: 46.25634523 | L81: -9.881322078 | M81: F | N81: 1114.011087 | O81: 978.2989071
B82: 68 | C82: 312 | F82: 200 | H82: 312 | I82: 5.445427266 | J82: 5.394085497 | K82: -155.3009684 | L82: 126.0222568 | M82: 68 | N82: 912.4537731 | O82: 1114.202486

Sheet RUA DA ESPERANÇA
A1: ESTAÇÃO | B1: PTO VISADO | C1: ÂNGULO HORIZONTAL | F1: DISTÂNCIA | G1: OBSERVAÇÕES | H1: α decimal | I1: radiano | K1: Δx | L1: Δy | M1: p | N1: x | O1: y
A2: A | M2: A | N2: 1000 | O2: 1000
A3: A | B3: 0 | C3: 0 | D3: 0 | F3: 44.9 | H3: =C3+(D3/60)+(E3/3600) -> 0 | I3: =H3*PI()/180 -> 0 | J3: =I3 -> 0 | K3: =SIN(J3)*F3 -> 0 | L3: =COS(J3)*F3 -> 44.9 | M3: =B3 -> 0 | N3: =$N$2+K3 -> 1000 | O3: =$O$2+L3 -> 1044.9
B4: 1 | C4: 0 | D4: 11 | E4: 20 | F4: 43.8 | H4: =C4+(D4/60)+(E4/3600) -> 0.1888888889 | I4: =H4*PI()/180 -> 0.003296733032 | J4: =I4 -> 0.003296733032 | K4: =SIN(J4)*F4 -> 0.1443966452 | L4: =COS(J4)*F4 -> 43.79976198 | M4: =B4 -> 1 | N4: =$N$2+K4 -> 1000.144397 | O4: =$O$2+L4 -> 1043.799762
B5: 2 | C5: 357 | D5: 5 | F5: 43.5 | H5: 357.0833333 | I5: 6.232279871 | J5: 6.232279871 | K5: -2.213430232 | L5: 43.44365001 | M5: 2 | N5: 997.7865698 | O5: 1043.44365
B6: 3 | C6: 0 | D6: 50 | F6: 17.2 | H6: 0.8333333333 | I6: 0.01454441043 | J6: 0.01454441043 | K6: 0.2501550396 | L6: 17.19818079 | M6: 3 | N6: 1000.250155 | O6: 1017.198181
B7: 4 | C7: 2 | D7: 27 | E7: 40 | F7: 11.5 | H7: 2.461111111 | I7: 0.04295449215 | J7: 0.04295449215 | K7: 0.4938247686 | L7: 11.48939237 | M7: 4 | N7: 1000.493825 | O7: 1011.489392
B8: 5 | C8: 11 | D8: 9 | E8: 40 | F8: 3 | H8: 11.16111111 | I8: 0.1947981371 | J8: 0.1947981371 | K8: 0.5807054816 | L8: 2.943260292 | M8: 5 | N8: 1000.580705 | O8: 1002.94326
B9: 6 | C9: 10 | D9: 13 | E9: 20 | F9: 14.9 | H9: 10.22222222 | I9: 0.1784114346 | J9: 0.1784114346 | K9: 2.644250078 | L9: 14.66349009 | M9: 6 | N9: 1002.64425 | O9: 1014.66349
B10: 7 | C10: 18 | D10: 8 | E10: 40 | F10: 9.1 | H10: 18.14444444 | I10: 0.3166802965 | J10: 0.3166802965 | K10: 2.833864242 | L10: 8.647497526 | M10: 7 | N10: 1002.833864 | O10: 1008.647498
B11: 8 | C11: 53 | D11: 53 | F11: 3.5 | H11: 53.88333333 | I11: 0.9404415786 | J11: 0.9404415786 | K11: 2.827364608 | L11: 2.063009785 | M11: 8 | N11: 1002.827365 | O11: 1002.06301
B12: 9 | C12: 85 | D12: 36 | E12: 40 | F12: 24.7 | H12: 85.61111111 | I12: 1.494195765 | J12: 1.494195765 | K12: 24.62757 | L12: 1.890184117 | M12: 9 | N12: 1024.62757 | O12: 1001.890184
B13: 10 | C13: 87 | D13: 19 | E13: 30 | F13: 27 | H13: 87.325 | I13: 1.524108769 | J13: 1.524108769 | K13: 26.97057902 | L13: 1.260106154 | M13: 10 | N13: 1026.970579 | O13: 1001.260106
B14: 11 | C14: 84 | D14: 37 | E14: 40 | F14: 24.8 | H14: 84.62777778 | I14: 1.477033361 | J14: 1.477033361 | K14: 24.69106532 | L14: 2.321915877 | M14: 11 | N14: 1024.691065 | O14: 1002.321916
B15: 12 | C15: 87 | D15: 15 | E15: 50 | F15: 46.2 | H15: 87.26388889 | I15: 1.523042179 | J15: 1.523042179 | K15: 46.14733142 | L15: 2.205403174 | M15: 12 | N15: 1046.147331 | O15: 1002.205403
B16: 13 | C16: 94 | D16: 58 | E16: 20 | F16: 43.8 | H16: 94.97222222 | I16: 1.657577976 | J16: 1.657577976 | K16: 43.63517339 | L16: -3.79626705 | M16: 13 | N16: 1043.635173 | O16: 996.2037329
B17: 14 | C17: 97 | D17: 29 | E17: 50 | F17: 32.6 | H17: 97.49722222 | I17: 1.701647539 | J17: 1.701647539 | K17: 32.32130874 | L17: -4.25358689 | M17: 14 | N17: 1032.321309 | O17: 995.7464131
B18: 15 | C18: 100 | D18: 5 | F18: 23.3 | H18: 100.0833333 | I18: 1.746783693 | J18: 1.746783693 | K18: 22.94011171 | L18: -4.079371883 | M18: 15 | N18: 1022.940112 | O18: 995.9206281
B19: 16 | C19: 103 | D19: 14 | E19: 30 | F19: 13.3 | H19: 103.2416667 | I19: 1.801907009 | J19: 1.801907009 | K19: 12.94638737 | L19: -3.046482256 | M19: 16 | N19: 1012.946387 | O19: 996.9535177
B20: 17 | C20: 148 | D20: 3 | E20: 50 | F20: 3.2 | H20: 148.0638889 | I20: 2.584202364 | J20: 2.584202364 | K20: 1.692714562 | L20: -2.715643093 | M20: 17 | N20: 1001.692715 | O20: 997.2843569
B21: 18 | C21: 185 | D21: 46 | E21: 30 | F21: 20.2 | H21: 185.775 | I21: 3.242385418 | J21: 3.242385418 | K21: -2.032568217 | L21: -20.09747911 | M21: 18 | N21: 997.9674318 | O21: 979.9025209
B22: 19 | C22: 190 | D22: 58 | F22: 29.2 | H22: 190.9666667 | I22: 3.332997095 | J22: 3.332997095 | K22: -5.554945967 | L22: -28.66675034 | M22: 19 | N22: 994.445054 | O22: 971.3332497
B23: 20 | C23: 178 | D23: 52 | F23: 2.7 | H23: 178.8666667 | I23: 3.121812255 | J23: 3.121812255 | K23: 0.05340359247 | L23: -2.699471811 | M23: 20 | N23: 1000.053404 | O23: 997.3005282
B24: 21 | C24: 187 | D24: 0 | E24: 20 | F24: 11 | H24: 187.0055556 | I24: 3.263862664 | J24: 3.263862664 | K24: -1.341621411 | L24: -10.91787763 | M24: 21 | N24: 998.6583786 | O24: 989.0821224
B25: 22 | C25: 191 | D25: 19 | F25: 21.8 | H25: 191.3166667 | I25: 3.339105747 | J25: 3.339105747 | K25: -4.277844197 | L25: -21.37615609 | M25: 22 | N25: 995.7221558 | O25: 978.6238439
B26: 23 | C26: 193 | D26: 47 | E26: 50 | F26: 30 | H26: 193.7972222 | I26: 3.382399609 | J26: 3.382399609 | K26: -7.154591261 | L26: -29.1343753 | M26: 23 | N26: 992.8454087 | O26: 970.8656247
B27: 24 | C27: 206 | D27: 22 | E27: 40 | F27: 18.5 | H27: 206.3777778 | I27: 3.601971725 | J27: 3.601971725 | K27: -8.219323247 | L27: -16.57385668 | M27: 24 | N27: 991.7806768 | O27: 983.4261433
B28: 25 | C28: 214 | D28: 43 | E28: 30 | F28: 11.6 | H28: 214.725 | I28: 3.747658236 | J28: 3.747658236 | K28: -6.607803088 | L28: -9.533988586 | M28: 25 | N28: 993.3921969 | O28: 990.4660114
B29: 26 | C29: 242 | D29: 30 | F29: 6.1 | H29: 242.5 | I29: 4.232423436 | J29: 4.232423436 | K29: -5.410766082 | L29: -2.816666541 | M29: 26 | N29: 994.5892339 | O29: 997.1833335
B30: 27 | C30: 328 | D30: 14 | F30: 8.9 | H30: 328.2333333 | I30: 5.728752381 | J30: 5.728752381 | K30: -4.685505204 | L30: 7.566772164 | M30: 27 | N30: 995.3144948 | O30: 1007.566772
B31: 28 | C31: 342 | D31: 27 | E31: 40 | F31: 16 | H31: 342.4611111 | I31: 5.977073949 | J31: 5.977073949 | K31: -4.821648884 | L31: 15.25620208 | M31: 28 | N31: 995.1783511 | O31: 1015.256202
B32: 29 | C32: 215 | D32: 44 | E32: 20 | F32: 20.6 | H32: 215.7388889 | I32: 3.765353936 | J32: 3.765353936 | K32: -12.03230076 | L32: -16.72075771 | M32: 29 | N32: 987.9676992 | O32: 983.2792423
B33: 30 | C33: 222 | D33: 0 | E33: 50 | F33: 13.7 | H33: 222.0138889 | I33: 3.874873346 | J33: 3.874873346 | K33: -9.169557002 | L33: -10.17886164 | M33: 30 | N33: 990.830443 | O33: 989.8211384
B34: 31 | C34: 302 | D34: 0 | F34: 8.5 | H34: 302 | I34: 5.270894341 | J34: 5.270894341 | K34: -7.208408817 | L34: 4.504313746 | M34: 31 | N34: 992.7915912 | O34: 1004.504314
B35: 32 | C35: 333 | D35: 12 | F35: 15.6 | H35: 333.2 | I35: 5.815437068 | J35: 5.815437068 | K35: -7.033689635 | L35: 13.92433877 | M35: 32 | N35: 992.9663104 | O35: 1013.924339
B36: 33 | C36: 341 | D36: 58 | E36: 40 | F36: 25.1 | H36: 341.9777778 | I36: 5.968638191 | J36: 5.968638191 | K36: -7.765584566 | L36: 23.86850847 | M36: 33 | N36: 992.2344154 | O36: 1023.868508
B37: B | C37: 91 | D37: 30 | F37: 60 | H37: 91.5 | I37: 1.596976266 | J37: =I37 -> 1.596976266 | K37: 59.9794395 | L37: -1.570616898 | M37: B | N37: 1059.979439 | O37: 998.4293831
A38: B | B38: A | M38: A
B39: C | C39: 180 | F39: 13 | H39: =C39+(D39/60)+(E39/3600) -> 180 | I39: =H39*PI()/180 -> 3.141592654 | J39: =IF($J$37+I39>PI(),$J$37+I39-PI(),$J$37+I39+PI()) -> 1.596976266 | K39: =SIN(J39)*F39 -> 12.99554522 | L39: =COS(J39)*F39 -> -0.340300328 | M39: =B39 -> C | N39: =$N$37+K39 -> 1072.974985 | O39: =$O$37+L39 -> 998.0890828
A40: C | B40: B | M40: B
B41: 34 | C41: 7 | D41: 16 | F41: 18.5 | H41: =C41+(D41/60)+(E41/3600) -> 7.266666667 | I41: =H41*PI()/180 -> 0.126827259 | J41: =IF($J$39+I41>PI(),$J$39+I41-PI(),$J$39+I41+PI()) -> 4.865396178 | K41: =SIN(J41)*F41 -> -18.28386853 | L41: =COS(J41)*F41 -> 2.819601325 | M41: =B41 -> 34 | N41: =$N$39+K41 -> 1054.691116 | O41: =$O$39+L41 -> 1000.908684
B42: 35 | C42: 13 | D42: 19 | E42: 20 | F42: 8.5 | H42: =C42+(D42/60)+(E42/3600) -> 13.32222222 | I42: =H42*PI()/180 -> 0.2325166415 | J42: =IF($J$39+I42>PI(),$J$39+I42-PI(),$J$39+I42+PI()) -> 4.971085561 | K42: =SIN(J42)*F42 -> -8.217156049 | L42: =COS(J42)*F42 -> 2.174476138 | M42: =B42 -> 35 | N42: =$N$39+K42 -> 1064.757829 | O42: =$O$39+L42 -> 1000.263559
B43: 36 | C43: 6 | D43: 53 | F43: 8.7 | H43: 6.883333333 | I43: 0.1201368302 | J43: 4.858705749 | K43: -8.607038629 | L43: 1.268418716 | M43: 36 | N43: 1064.367946 | O43: 999.3575015
B44: 37 | C44: 125 | D44: 58 | E44: 30 | F44: 2.7 | H44: 125.975 | I44: 2.198678525 | J44: 0.6540621372 | K44: 1.642721055 | L44: 2.142770995 | M44: 37 | N44: 1074.617706 | O44: 1000.231854
B45: 38 | C45: 171 | D45: 20 | E45: 40 | F45: 16.3 | H45: 171.3444444 | I45: 2.990524711 | J45: 1.445908323 | K45: 16.17304947 | L45: 2.030386854 | M45: 38 | N45: 1089.148034 | O45: 1000.11947
B46: 39 | C46: 173 | D46: 46 | E46: 40 | F46: 16.5 | H46: 173.7777778 | I46: 3.032994389 | J46: 1.488378001 | K46: 16.44399128 | L46: 1.358363312 | M46: 39 | N46: 1089.418976 | O46: 999.4474461
B47: 40 | C47: 178 | D47: 0 | E47: 50 | F47: 33 | H47: 178.0138889 | I47: 3.106928475 | J47: 1.562312087 | K47: 32.9988123 | L47: 0.2799765419 | M47: 40 | N47: 1105.973797 | O47: 998.3690593
B48: 41 | C48: 180 | D48: 28 | F48: 40.2 | H48: 180.4666667 | I48: 3.149737523 | J48: 1.605121135 | K48: 40.17632066 | L48: -1.379586366 | M48: 41 | N48: 1113.151305 | O48: 996.7094964
B49: 42 | C49: 181 | D49: 24 | E49: 50 | F49: 52.3 | H49: 181.4138889 | I49: 3.16626967 | J49: 1.621653282 | K49: 52.23237943 | L49: -2.65867233 | M49: 42 | N49: 1125.207364 | O49: 995.4304104
B50: 43 | C50: 184 | D50: 11 | F50: 52.2 | H50: 184.1833333 | I50: 3.214605594 | J50: 1.669989206 | K50: 51.94340666 | L50: -5.169381431 | M50: 43 | N50: 1124.918391 | O50: 992.9197013
B51: 44 | C51: 184 | D51: 6 | E51: 50 | F51: 54.9 | H51: 184.1138889 | I51: 3.21339356 | J51: 1.668777172 | K51: 54.63668401 | L51: -5.37054566 | M51: 44 | N51: 1127.611669 | O51: 992.7185371
B52: 45 | C52: 188 | F52: 53.3 | H52: 188 | I52: 3.281218994 | J52: 1.736602606 | K52: 52.56902256 | L52: -8.797037392 | M52: 45 | N52: 1125.544007 | O52: 989.2920454
B53: 46 | C53: 198 | D53: 56 | E53: 40 | F53: 48.5 | H53: 198.9444444 | I53: 3.472235584 | J53: 1.927619196 | K53: 45.445049 | L53: -16.9410012 | M53: 46 | N53: 1118.420034 | O53: 981.1480816
B54: 47 | C54: 192 | D54: 44 | E54: 40 | F54: 47.2 | H54: 192.7444444 | I54: 3.36402517 | J54: 1.819408782 | K54: 45.74882528 | L54: -11.61399955 | M54: 47 | N54: 1118.72381 | O54: 986.4750832
B55: 48 | C55: 190 | D55: 25 | F55: 25.5 | H55: 190.4166667 | I55: 3.323397784 | J55: 1.778781396 | K55: 24.95044851 | L55: -5.265464742 | M55: 48 | N55: 1097.925433 | O55: 992.823618
B56: 49 | C56: 189 | D56: 21 | E56: 30 | F56: 19.3 | H56: 189.3583333 | I56: 3.304926383 | J56: 1.760309995 | K56: 18.95445217 | L56: -3.635758946 | M56: 49 | N56: 1091.929437 | O56: 994.4533238
B57: 50 | C57: 191 | D57: 51 | F57: 18.9 | H57: 191.85 | I57: 3.34841417 | J57: 1.803797782 | K57: 18.3892794 | L57: -4.363989366 | M57: 50 | N57: 1091.364264 | O57: 993.7250934
B58: 51 | C58: 191 | D58: 18 | F58: 12.1 | H58: 191.3 | I58: 3.338814859 | J58: 1.794198471 | K58: 11.79930719 | L58: -2.680736821 | M58: 51 | N58: 1084.774292 | O58: 995.408346
B59: 52 | C59: 253 | D59: 50 | F59: 4.9 | H59: 253.8333333 | I59: 4.430227418 | J59: 2.88561103 | K59: 1.240656324 | L59: -4.740334575 | M59: 52 | N59: 1074.215641 | O59: 993.3487482
B60: 53 | C60: 261 | D60: 59 | E60: 30 | F60: 4.5 | H60: 261.9916667 | I60: 4.572617196 | J60: 3.028000808 | K60: 0.5100647478 | L60: -4.470999212 | M60: 53 | N60: 1073.485049 | O60: 993.6180836
B61: 54 | C61: 272 | D61: 59 | E61: 20 | F61: 7.5 | H61: 272.9888889 | I61: 4.764554932 | J61: 3.219938544 | K61: -0.5869932494 | L61: -7.476993977 | M61: 54 | N61: 1072.387991 | O61: 990.6120888
B62: 55 | C62: 282 | D62: 15 | F62: 18.8 | H62: 282.25 | I62: 4.926191814 | J62: 3.381575426 | K62: -4.468494776 | L62: -18.26123091 | M62: 55 | N62: 1068.50649 | O62: 979.8278519
B63: 56 | C63: 297 | D63: 59 | E63: 30 | F63: 20.9 | H63: 297.9916667 | I63: 5.200935727 | J63: 3.656319339 | K63: -10.28900661 | L63: -18.19193071 | M63: 56 | N63: 1062.685978 | O63: 979.8971521
B64: 57 | C64: 296 | D64: 52 | E64: 40 | F64: 15.3 | H64: 296.8777778 | I64: 5.181494698 | J64: 3.63687831 | K64: -7.271829912 | L64: -13.46144456 | M64: 57 | N64: 1065.703155 | O64: 984.6276382
B65: 58 | C65: 301 | D65: 2 | E65: 40 | F65: 10.5 | H65: 301.0444444 | I65: 5.25421675 | J65: 3.709600362 | K65: -5.648513503 | L65: -8.851231282 | M65: 58 | N65: 1067.326471 | O65: 989.2378515
B66: 59 | C66: 308 | D66: 21 | E66: 50 | F66: 8.5 | H66: 308.3638889 | I66: 5.381965155 | J66: 3.837348767 | K66: -5.448210935 | L66: -6.524338863 | M66: 59 | N66: 1067.526774 | O66: 991.5647439
B67: 60 | C67: 322 | D67: 19 | E67: 30 | F67: 7.2 | H67: 322.325 | I67: 5.625632511 | J67: 4.081016123 | K67: -5.811969137 | L67: -4.249825262 | M67: 60 | N67: 1067.163016 | O67: 993.8392575
B68: 61 | C68: 312 | D68: 28 | F68: 9 | H68: 312.4666667 | I68: 5.453572136 | J68: 3.908955748 | K68: -6.248157822 | L68: -6.47769433 | M68: 61 | N68: 1066.726827 | O68: 991.6113884
B69: 62 | C69: 344 | D69: 17 | E69: 20 | F69: 11 | H69: 344.2888889 | I69: 6.008974689 | J69: 4.464358301 | K69: -10.66337536 | L69: -2.700449196 | M69: 62 | N69: 1062.311609 | O69: 995.3886336
B70: 63 | C70: 350 | D70: 40 | E70: 20 | F70: 16.5 | H70: 350.6722222 | I70: 6.120384873 | J70: 4.575768485 | K70: -16.3462518 | L70: -2.247232095 | M70: 63 | N70: 1056.628733 | O70: 995.8418507
B71: AUX.1 | C71: 186 | F71: 54 | H71: 186 | I71: 3.246312409 | J71: 1.701696021 | K71: 53.53802251 | L71: -7.04841438 | M71: AUX.1 | N71: 1126.513007 | O71: 991.0406684
B72: D | C72: 289 | F72: 19 | H72: 289 | I72: 5.044001538 | J72: 3.49938515 | K72: -6.653940244 | L72: -17.7967716 | M72: D | N72: 1066.321044 | O72: 980.2923112
A73: D | B73: C | M73: =B73 -> C
B74: 64 | C74: 96 | D74: 38 | F74: 5 | H74: =C74+(D74/60)+(E74/3600) -> 96.63333333 | I74: =H74*PI()/180 -> 1.686569834 | J74: =IF($J$72+I74>PI(),$J$72+I74-PI(),$J$72+I74+PI()) -> 2.044362331 | K74: =SIN(J74)*F74 -> 4.449738143 | L74: =COS(J74)*F74 -> -2.280313675 | M74: 64 | N74: =$N$72+K74 -> 1070.770783 | O74: =$O$72+L74 -> 978.0119975
B75: 65 | C75: 104 | D75: 26 | E75: 20 | F75: 19.3 | H75: =C75+(D75/60)+(E75/3600) -> 104.4388889 | I75: =H75*PI()/180 -> 1.822802478 | J75: =IF($J$72+I75>PI(),$J$72+I75-PI(),$J$72+I75+PI()) -> 2.180594975 | K75: =SIN(J75)*F75 -> 15.82143264 | L75: =COS(J75)*F75 -> -11.05315653 | M75: =B75 -> 65 | N75: =$N$72+K75 -> 1082.142477 | O75: =$O$72+L75 -> 969.2391546
B76: 66 | C76: 106 | D76: 56 | E76: 40 | F76: 18 | H76: 106.9444444 | I76: 1.866532672 | J76: 2.224325169 | K76: 14.2909783 | L76: -10.94385395 | M76: 66 | N76: 1080.612023 | O76: 969.3484572
B77: 67 | C77: 106 | D77: 15 | E77: 40 | F77: 1.9 | H77: 106.2611111 | I77: 1.854606256 | J77: 2.212398752 | K77: 1.522161758 | L77: -1.137111948 | M77: 67 | N77: 1067.843206 | O77: 979.1551992
B78: 68 | C78: 193 | D78: 7 | F78: 9.9 | H78: 193.1166667 | I78: 3.370521674 | J78: 3.72831417 | K78: -5.480974747 | L78: -8.244326281 | M78: 68 | N78: 1060.84007 | O78: 972.0479849
B79: 69 | C79: 201 | D79: 17 | E79: 40 | F79: 20.7 | H79: 201.2944444 | I79: 3.513250822 | J79: 3.871043318 | K79: -13.7957258 | L79: -15.43269094 | M79: 69 | N79: 1052.525319 | O79: 964.8596202
B80: 70 | C80: 213 | D80: 35 | F80: 13.8 | H80: 213.5833333 | I80: 3.727732394 | J80: 4.085524891 | K80: -11.17622032 | L80: -8.095189896 | M80: 70 | N80: 1055.144824 | O80: 972.1971213
B81: 71 | C81: 217 | D81: 27 | F81: 8.2 | H81: 217.45 | I81: 3.795218458 | J81: 4.153010955 | K81: -6.950199718 | L81: -4.351404816 | M81: 71 | N81: 1059.370845 | O81: 975.9409064
B82: E | C82: 207 | F82: 34 | H82: 207 | I82: 3.612831552 | J82: 3.970624048 | K82: -25.06742945 | L82: -22.97006706 | M82: E | N82: 1041.253615 | O82: 957.3222441
A83: E | B83: D | M83: D
B84: 72 | C84: 56 | D84: 27 | E84: 50 | F84: 2.5 | H84: 56.46388889 | I84: 0.9854807696 | J84: =IF($J$82+I84>PI(),$J$82+I84-PI(),$J$82+I84+PI()) -> 1.814512164 | K84: 2.426120017 | L84: -0.6032757779 | M84: 72 | N84: =$N$82+K84 -> 1043.679735 | O84: =$O$82+L84 -> 956.7189683
B85: 73 | C85: 81 | D85: 42 | E85: 20 | F85: 23.3 | H85: =C85+(D85/60)+(E85/3600) -> 81.70555556 | I85: =H85*PI()/180 -> 1.426030962 | J85: =IF($J$82+I85>PI(),$J$82+I85-PI(),$J$82+I85+PI()) -> 2.255062356 | K85: =SIN(J85)*F85 -> 18.0547786 | L85: =COS(J85)*F85 -> -14.72803346 | M85: =B85 -> 73 | N85: =$N$82+K85 -> 1059.308394 | O85: =$O$82+L85 -> 942.5942107
B86: 74 | C86: 84 | D86: 14 | E86: 50 | F86: 40.5 | H86: 84.24722222 | I86: 1.470391413 | J86: 2.299422808 | K86: 30.21663111 | L86: -26.96674256 | M86: 74 | N86: 1071.470246 | O86: 930.3555016
B87: 75 | C87: 87 | D87: 31 | E87: 20 | F87: 40 | H87: 87.52222222 | I87: 1.527550946 | J87: 2.356582341 | K87: 28.27329904 | L87: -28.2952392 | M87: 75 | N87: 1069.526914 | O87: 929.0270049
B88: 76 | C88: 88 | D88: 17 | E88: 50 | F88: 25.9 | H88: 88.29722222 | I88: 1.541077248 | J88: 2.370108643 | K88: 18.05747634 | L88: -18.56710931 | M88: 76 | N88: 1059.311091 | O88: 938.7551348
B89: 77 | C89: 88 | D89: 44 | E89: 20 | F89: 21.6 | H89: 88.73888889 | I89: 1.548785786 | J89: 2.37781718 | K89: 14.93970756 | L89: -15.60016468 | M89: 77 | N89: 1056.193323 | O89: 941.7220794
B90: 78 | C90: 93 | D90: 11 | F90: 9.4 | H90: 93.18333333 | I90: 1.626355975 | J90: 2.455387369 | K90: 5.9558959 | L90: -7.272365779 | M90: 78 | N90: 1047.209511 | O90: 950.0498783
B91: 79 | C91: 241 | D91: 11 | E91: 40 | F91: 4.4 | H91: 241.1944444 | I91: 4.209637193 | J91: 5.038668588 | K91: -4.167861988 | L91: 1.410293038 | M91: 79 | N91: 1037.085753 | O91: 958.7325372
B92: 80 | C92: 254 | D92: 14 | E92: 50 | F92: 4.7 | H92: 254.2472222 | I92: 4.437451142 | J92: 5.266482537 | K92: -3.996775357 | L92: 2.473011675 | M92: 80 | N92: 1037.25684 | O92: 959.7952558
B93: 81 | C93: 252 | D93: 30 | E93: 40 | F93: 7.2 | H93: 252.5111111 | I93: 4.407150287 | J93: 5.236181681 | K93: -6.234684658 | L93: 3.601209132 | M93: 81 | N93: 1035.01893 | O93: 960.9234533
B94: 82 | C94: 298 | D94: 13 | E94: 20 | F94: 3 | H94: 298.2222222 | I94: 5.20495968 | J94: 6.033991075 | K94: -0.7398694815 | L94: 2.907334372 | M94: 82 | N94: 1040.513746 | O94: 960.2295785
B95: F | C95: 85 | D95: 30 | F95: 42 | H95: 85.5 | I95: 1.49225651 | J95: 2.321287905 | K95: 30.71685547 | L95: -28.64393112 | M95: F | N95: 1071.97047 | O95: 928.678313
B96: 83 | C96: 328 | F96: 200 | H96: 328 | I96: 5.724679947 | J96: 6.553711341 | K96: 53.44767522 | L96: 192.7260906 | M96: 83 | N96: 1094.70129 | O96: 1150.048335

Sheet RUA AYRTON SENNA
A1: ESTAÇÃO | B1: PTO VISADO | C1: ÂNGULO HORIZONTAL | F1: DISTÂNCIA | G1: OBSERVAÇÕES | H1: α decimal | I1: radiano | K1: Δx | L1: Δy | M1: p | N1: x | O1: y
A2: A | M2: A | N2: 1000 | O2: 1000
A3: A | B3: 0 | C3: 0 | D3: 0 | F3: 43 | H3: =C3+(D3/60)+(E3/3600) -> 0 | I3: =H3*PI()/180 -> 0 | J3: =I3 -> 0 | K3: =SIN(J3)*F3 -> 0 | L3: =COS(J3)*F3 -> 43 | M3: =B3 -> 0 | N3: =$N$2+K3 -> 1000 | O3: =$O$2+L3 -> 1043
B4: 1 | C4: 357 | D4: 32 | E4: 40 | F4: 39.2 | H4: =C4+(D4/60)+(E4/3600) -> 357.5444444 | I4: =H4*PI()/180 -> 6.240327778 | J4: =I4 -> 6.240327778 | K4: =SIN(J4)*F4 -> -1.6795009 | L4: =COS(J4)*F4 -> 39.16400486 | M4: =B4 -> 1 | N4: =$N$2+K4 -> 998.3204991 | O4: =$O$2+L4 -> 1039.164005
B5: 2 | C5: 2 | D5: 54 | F5: 2.1 | H5: 2.9 | I5: 0.05061454831 | J5: 0.05061454831 | K5: 0.1062451742 | L5: 2.09731065 | M5: 2 | N5: 1000.106245 | O5: 1002.097311
B6: 3 | C6: 46 | D6: 5 | F6: 3.4 | H6: 46.08333333 | I6: 0.804305897 | J6: 0.804305897 | K6: 2.449187888 | L6: 2.358278756 | M6: 3 | N6: 1002.449188 | O6: 1002.358279
B7: 4 | C7: 76 | D7: 40 | E7: 20 | F7: 17.1 | H7: 76.67222222 | I7: 1.338182723 | J7: 1.338182723 | K7: 16.63944958 | L7: 3.941918002 | M7: 4 | N7: 1016.63945 | O7: 1003.941918
B8: 5 | C8: 97 | D8: 21 | F8: 18.1 | H8: 97.35 | I8: 1.699078027 | J8: 1.699078027 | K8: 17.95127556 | L8: -2.315535739 | M8: 5 | N8: 1017.951276 | O8: 997.6844643
B9: 6 | C9: 94 | D9: 37 | E9: 40 | F9: 18 | H9: 94.62777778 | I9: 1.651566286 | J9: 1.651566286 | K9: 17.94131784 | L9: -1.452279005 | M9: 6 | N9: 1017.941318 | O9: 998.547721
B10: 7 | C10: 128 | D10: 43 | E10: 30 | F10: 3.5 | H10: 128.725 | I10: 2.24667508 | J10: 2.24667508 | K10: 2.730551318 | L10: -2.189540933 | M10: 7 | N10: 1002.730551 | O10: 997.8104591
B11: 8 | C11: 136 | D11: 42 | E11: 50 | F11: 3.2 | H11: 136.7138889 | I11: 2.386107494 | J11: 2.386107494 | K11: 2.19405413 | L11: -2.329404747 | M11: 8 | N11: 1002.194054 | O11: 997.6705953
B12: 9 | C12: 136 | D12: 42 | E12: 50 | F12: 4 | H12: 136.7138889 | I12: 2.386107494 | J12: 2.386107494 | K12: 2.742567663 | L12: -2.911755933 | M12: 9 | N12: 1002.742568 | O12: 997.0882441
B13: 10 | C13: 166 | D13: 46 | F13: 13 | H13: 166.7666667 | I13: 2.910627416 | J13: 2.910627416 | K13: 2.975924077 | L13: -12.65479656 | M13: 10 | N13: 1002.975924 | O13: 987.3452034
B14: 11 | C14: 172 | D14: 14 | E14: 50 | F14: 30 | H14: 172.2472222 | I14: 3.006281155 | J14: 3.006281155 | K14: 4.046969059 | L14: -29.72578075 | M14: 11 | N14: 1004.046969 | O14: 970.2742192
B15: 12 | C15: 176 | D15: 56 | E15: 40 | F15: 30 | H15: 176.9444444 | I15: 3.088263149 | J15: 3.088263149 | K15: 1.5991269 | L15: -29.95734957 | M15: 12 | N15: 1001.599127 | O15: 970.0426504
B16: 13 | C16: 185 | D16: 26 | E16: 20 | F16: 35 | H16: 185.4388889 | I16: 3.236519172 | J16: 3.236519172 | K16: -3.317440647 | L16: -34.84242511 | M16: 13 | N16: 996.6825594 | O16: 965.1575749
B17: 14 | C17: 189 | F17: 35.5 | H17: 189 | I17: 3.298672286 | J17: 3.298672286 | K17: -5.553423509 | L17: -35.06293609 | M17: 14 | N17: 994.4465765 | O17: 964.9370639
B18: 15 | C18: 346 | D18: 46 | F18: 41.3 | H18: 346.7666667 | I18: 6.052220069 | J18: 6.052220069 | K18: -9.454281875 | L18: 40.20331521 | M18: 15 | N18: 990.5457181 | O18: 1040.203315
B19: 16 | C19: 349 | D19: 32 | F19: 39.5 | H19: 349.5333333 | I19: 6.100507512 | J19: 6.100507512 | K19: -7.175706677 | L19: 38.84275008 | M19: 16 | N19: 992.8242933 | O19: 1038.84275
B20: B | C20: 84 | F20: 80 | H20: 84 | I20: 1.466076572 | J20: 1.466076572 | K20: 79.56175163 | L20: 8.362277061 | M20: B | N20: 1079.561752 | O20: 1008.362277
A21: B | B21: A | M21: A
B22: 17 | C22: 356 | D22: 45 | F22: 55.2 | H22: 356.75 | I22: 6.226462106 | J22: =IF($J$20+I22>PI(),$J$20+I22-PI(),$J$20+I22+PI()) -> 4.550946025 | K22: -54.48219943 | L22: -8.872989621 | M22: 17 | N22: =$N$20+K22 -> 1025.079552 | O22: =$O$20+L22 -> 999.4892874
B23: 18 | C23: 357 | D23: 26 | E23: 30 | F23: 44.9 | H23: =C23+(D23/60)+(E23/3600) -> 357.4416667 | I23: =H23*PI()/180 -> 6.238533967 | J23: =IF($J$20+I23>PI(),$J$20+I23-PI(),$J$20+I23+PI()) -> 4.563017885 | K23: =SIN(J23)*F23 -> -44.40003243 | L23: =COS(J23)*F23 -> -6.681850076 | M23: =B23 -> 18 | N23: =$N$20+K23 -> 1035.161719 | O23: =$O$20+L23 -> 1001.680427
B24: 19 | C24: 3 | D24: 46 | E24: 40 | F24: 41.1 | H24: 3.777777778 | I24: 0.06593466063 | J24: 4.673603886 | K24: -41.06909085 | L24: -1.593667759 | M24: 19 | N24: 1038.492661 | O24: 1006.768609
B25: 20 | C25: 44 | D25: 10 | E25: 40 | F25: 5 | H25: 44.17777778 | I25: 0.7710476784 | J25: 5.378716904 | K25: -3.930483422 | L25: 3.090517768 | M25: 20 | N25: 1075.631268 | O25: 1011.452795
B26: 21 | C26: 77 | D26: 53 | E26: 30 | F26: 13.2 | H26: 77.89166667 | I26: 1.359466043 | J26: 5.967135268 | K26: -4.102753687 | L26: 12.54621107 | M26: 21 | N26: 1075.458998 | O26: 1020.908488
B27: 22 | C27: 93 | D27: 31 | E27: 40 | F27: 5.2 | H27: 93.52777778 | I27: 1.632367664 | J27: 6.24003689 | K27: -0.2243021561 | L27: 5.195160108 | M27: 22 | N27: 1079.337449 | O27: 1013.557437
B28: 23 | C28: 133 | D28: 14 | E28: 30 | F28: 10.4 | H28: 133.2416667 | I28: 2.325505784 | J28: 0.6499897023 | K28: 6.293853362 | L28: 8.279336318 | M28: 23 | N28: 1085.855605 | O28: 1016.641613
B29: 24 | C29: 160 | D29: 8 | F29: 12.6 | H29: 160.1333333 | I29: 2.794853909 | J29: 1.119337827 | K29: 11.33762802 | L29: 5.497107499 | M29: 24 | N29: 1090.89938 | O29: 1013.859385
B30: 25 | C30: 165 | D30: 37 | E30: 50 | F30: 13.4 | H30: 165.6305556 | I30: 2.890798536 | J30: 1.215282454 | K30: 12.56206782 | L30: 4.664166809 | M30: 25 | N30: 1092.123819 | O30: 1013.026444
B31: 26 | C31: 187 | D31: 21 | E31: 30 | F31: 14.4 | H31: 187.3583333 | I31: 3.270019798 | J31: 1.594503716 | K31: 14.3959535 | L31: -0.3413544238 | M31: 26 | N31: 1093.957705 | O31: 1008.020923
B32: 27 | C32: 270 | D32: 35 | E32: 30 | F32: 20 | H32: 270.5916667 | I32: 4.722715512 | J32: 3.04719943 | K32: 1.885062219 | L32: -19.91096533 | M32: 27 | N32: 1081.446814 | O32: 988.4513117
B33: 28 | C33: 276 | D33: 9 | F33: 20.6 | H33: 276.15 | I33: 4.819726729 | J33: 3.144210647 | K33: -0.05393061228 | L33: -20.5999294 | M33: 28 | N33: 1079.507821 | O33: 987.7623477
B34: 29 | C34: 316 | D34: 58 | E34: 40 | F34: 9.1 | H34: 316.9777778 | I34: 5.532305878 | J34: 3.856789796 | K34: -5.96747301 | L34: -6.870172187 | M34: 29 | N34: 1073.594279 | O34: 1001.492105
B35: 30 | C35: 336 | D35: 2 | E35: 30 | F35: 9.2 | H35: 336.0416667 | I35: 5.865033507 | J35: 4.189517425 | K35: -7.970776822 | L35: -4.594204703 | M35: 30 | N35: 1071.590975 | O35: 1003.768072
B36: 31 | C36: 336 | D36: 2 | F36: 8.2 | H36: 336.0333333 | I36: 5.864888063 | J36: 4.189371981 | K36: -7.103792392 | L36: -4.095867874 | M36: 31 | N36: 1072.457959 | O36: 1004.266409
B37: 32 | C37: 347 | D37: 55 | E37: 20 | F37: 11 | H37: 347.9222222 | I37: 6.072388319 | J37: 4.396872237 | K37: -10.45699772 | L37: -3.413385226 | M37: 32 | N37: 1069.104754 | O37: 1004.948892
B38: 33 | C38: 353 | F38: 14.3 | H38: 353 | I38: 6.16101226 | J38: 4.485496178 | K38: -13.93349193 | L38: -3.216800077 | M38: 33 | N38: 1065.62826 | O38: 1005.145477
B39: 34 | C39: 352 | D39: 30 | F39: 8.8 | H39: 352.5 | I39: 6.152285613 | J39: 4.476769531 | K39: -8.556855299 | L39: -2.054319202 | M39: 34 | N39: 1071.004896 | O39: 1006.307958
B40: 35 | C40: 16 | D40: 29 | E40: 20 | F40: 9.9 | H40: 16.48888889 | I40: 0.2877854011 | J40: 4.895454626 | K40: -9.734573269 | L40: 1.802243955 | M40: 35 | N40: 1069.827178 | O40: 1010.164521
B41: 36 | C41: 100 | F41: 200 | H41: 100 | I41: 1.745329252 | J41: 0.06981317008 | K41: 13.95129475 | L41: 199.5128101 | M41: 36 | N41: 1093.513046 | O41: 1207.875087

Sheet Plan1 (hidden)
A1: ESTAÇÃO | B1: PTO VISADO | C1: ÂNGULO HORIZONTAL | F1: DISTÂNCIA | G1: OBSERVAÇÕES | H1: α decimal | I1: radiano | K1: Δx | L1: Δy | M1: p | N1: x | O1: y
